bitfinex/quotes_ETHUSD_20250219
["timestamp","ask_amount","ask_price","bid_price","bid_amount"]
[1739985951156,11.64149276,2710.9,2710.3,3.68954]
[1739985951352,11.64149276,2710.9,2710.2,3.68976]
[1739985951723,6.1564,2710.9,2710.1,0.47669971]
[1739985951927,6.1564,2710.9,2710.3,3.68962]
[1739985952136,5.36,2710.9,2710.7,3.68901]
[1739985952755,5.36,2710.9,2710.5,4.49666]
[1739985952756,5.36,2710.9,2710.6,3.6892]
[1739985953047,5.36,2710.9,2710.3,3.68952]
[1739985953257,5.36,2710.9,2710.5,3.68928]
[1739985954061,9.84524,2711.1,2710.5,3.68928]
[1739985955864,0.7946,2711.0,2710.5,3.68925]
[1739985956368,0.7946,2711.0,2710.5,3.68929]
[1739985957672,0.7946,2711.0,2710.6,3.68921]
[1739985958167,0.7946,2711.0,2710.7,3.689]
[1739985958569,0.7946,2711.0,2710.6,3.68921]
[1739985958738,0.7946,2711.0,2710.6,3.68919]
[1739985959161,0.7946,2711.0,2710.6,7.37835]
[1739985959334,0.7946,2711.0,2710.6,3.68916]
[1739985959737,0.7946,2711.0,2710.7,3.68905]
[1739985960060,0.7946,2711.0,2710.6,3.68913]
[1739985960248,0.7946,2711.0,2710.6,7.37828]
[1739985960449,0.7946,2711.0,2710.6,3.68913]
[1739985960644,0.7946,2711.0,2710.5,3.68933]
[1739985961173,2.147758,2711.0,2710.4,3.68941]
[1739985961473,2.147758,2711.0,2710.5,3.6893]
[1739985962046,0.7946,2711.0,2710.5,3.6893]
[1739985962253,0.7946,2711.0,2710.5,7.37855]
[1739985962453,0.7946,2711.0,2710.6,3.6892]
[1739985962677,0.7946,2711.0,2710.4,3.68937]
[1739985963056,0.7946,2711.0,2710.6,3.68911]
[1739985966538,0.7946,2711.0,2710.2,0.8074]
[1739985966738,0.7946,2711.0,2710.3,0.49739897]
[1739985966938,5.36,2711.1,2710.8,3.68886]
[1739985967175,5.36,2711.1,2710.7,3.68899]
[1739985967343,5.36,2711.1,2710.8,3.68893]
[1739985967539,5.36,2711.1,2710.6,3.68919]
[1739985967744,0.8085,2711.0,2710.5,3.68935]
[1739985968241,0.7718,2710.9,2710.3,3.68955]
[1739985968646,0.7718,2710.9,2710.3,7.37908]
[1739985968866,0.7718,2710.8,2710.3,3.68953]
[1739985969099,3.68973,2710.3,2709.7,0.9414708]
[1739985969246,3.91498494,2710.2,2709.7,0.1466708]
[1739985969447,0.55,2709.9,2709.7,0.1466708]
[1739985969806,0.7718,2709.8,2709.7,0.1466708]
[1739985970140,0.8021,2710.1,2709.7,3.8370408]
[1739985970484,0.8021,2710.1,2709.7,0.1466708]
[1739985970780,0.8021,2710.1,2709.8,3.69028]
[1739985971154,0.8021,2710.1,2709.8,3.69023]
[1739985971345,5.36,2710.2,2709.8,3.69023]
[1739985971548,5.36,2710.2,2710.0,3.69003]
[1739985972320,0.7798,2710.3,2710.0,3.69003]
[1739985972498,5.36,2710.7,2710.2,3.68965]
[1739985972660,5.36,2711.0,2710.6,3.68922]
[1739985972869,0.7674,2711.0,2710.7,3.68896]
[1739985973252,0.7674,2711.0,2710.6,3.68922]
[1739985973608,0.7674,2711.0,2710.7,3.68896]
[1739985973897,0.7674,2711.0,2710.6,3.68911]
[1739985974301,0.7674,2711.0,2710.3,0.8239]
[1739985974503,0.7674,2711.0,2710.8,3.68881]
[1739985974995,0.7674,2711.0,2710.8,3.68893]
[1739985975558,0.7674,2711.0,2710.6,3.68913]
[1739985975871,0.7674,2711.0,2710.5,3.68935]
[1739985976275,0.7674,2711.0,2710.6,3.68915]
[1739985976482,0.7674,2711.0,2710.6,3.68922]
[1739985976805,0.7674,2711.0,2710.5,3.68927]
[1739985977349,0.7674,2711.0,2710.6,3.68921]
[1739985977596,0.7674,2711.0,2710.6,3.68914]
[1739985977897,0.7674,2711.0,2710.5,3.68927]
[1739985978100,0.7674,2711.0,2710.6,3.6892]
[1739985979489,0.7674,2711.0,2710.1,0.8117]
[1739985979685,0.7674,2711.0,2710.8,3.68894]
[1739985980957,0.7674,2711.0,2710.7,3.68907]
[1739985981388,0.7674,2711.0,2710.6,3.68918]
[1739985981572,0.7674,2711.0,2710.8,7.37778]
[1739985982107,0.7674,2711.0,2710.8,3.68885]
[1739985982443,0.7674,2711.0,2710.6,3.68911]
[1739985982571,0.7674,2711.0,2710.8,3.68891]
[1739985983360,0.7674,2711.0,2710.9,3.68881]
[1739985983601,0.7674,2711.0,2710.8,3.68891]
[1739985984008,0.7674,2711.0,2710.7,3.68907]
[1739985985290,0.7674,2711.0,2710.8,3.68893]
[1739985985923,0.7674,2711.0,2710.6,3.68911]
[1739985986062,0.7674,2711.0,2710.6,3.68909]
[1739985986262,0.7674,2711.0,2710.7,3.68901]
[1739985986718,0.7674,2711.0,2710.8,3.68884]
[1739985988311,5.36,2711.1,2710.8,3.68884]
[1739985988605,5.36,2711.1,2710.9,3.68881]
[1739985989511,5.36,2711.1,2710.7,3.68908]
[1739985989512,5.36,2711.1,2710.8,3.68887]
[1739985989714,9.86308,2711.3,2710.6,3.68912]
[1739985989878,1.355124,2711.2,2710.7,3.68902]
[1739985990428,4.46883,2711.1,2710.5,3.68934]
[1739985990569,0.7803,2711.1,2710.6,3.6892]
[1739985990974,0.7803,2711.1,2710.7,3.68901]
[1739985992608,0.7803,2711.1,2710.6,3.6892]
[1739985992796,0.7803,2711.1,2710.8,3.68894]
[1739985994135,0.7803,2711.1,2710.7,3.68906]
[1739985994503,0.7803,2711.1,2710.6,3.68911]
[1739985994751,0.7803,2711.1,2710.5,3.68933]
[1739985994752,1.8986834,2711.1,2710.3,4.51849]
[1739985994897,1.3364,2710.8,2710.1,3.68982]
[1739985995098,0.7864,2710.7,2710.1,3.68982]
[1739985995446,4.47576,2710.5,2709.9,3.69008]
[1739985995750,0.7864,2710.3,2709.8,3.69022]
[1739985996299,0.7864,2710.3,2709.8,7.38043]
[1739985996504,0.7864,2710.3,2709.8,3.69021]
[1739985998258,0.7864,2710.3,2709.9,3.69016]
[1739985998465,4.47602,2710.3,2709.7,3.8370308]
[1739985998665,9.83602,2710.3,2709.7,3.8370308]
[1739985998943,6.1464,2710.3,2709.8,3.69024]
[1739985999243,6.1464,2710.3,2709.8,3.69021]
[1739986000148,6.1464,2710.3,2709.9,3.69017]
[1739986001331,6.1464,2710.3,2709.8,3.69022]
[1739986001535,6.1464,2710.3,2709.8,7.38044]
[1739986001780,6.1464,2710.3,2709.8,3.69022]
[1739986001983,9.8361,2710.3,2709.8,3.69029]
[1739986002480,9.8361,2710.3,2709.8,3.69023]
[1739986002884,6.1464,2710.3,2709.8,3.69023]
[1739986003089,6.1464,2710.3,2709.9,3.6901]
[1739986004187,6.1464,2710.3,2709.7,3.8370808]
[1739986004336,6.1464,2710.3,2709.8,3.69024]
[1739986004536,11.31364839,2710.3,2709.7,3.8370508]
[1739986004983,7.62395839,2710.3,2709.8,3.69021]
[1739986005166,11.31359839,2710.3,2709.7,3.8370508]
[1739986005334,11.31359839,2710.3,2709.7,3.8370408]
[1739986005670,7.62395839,2710.3,2709.8,3.69024]
[1739986005872,7.62395839,2710.3,2709.9,3.69013]
[1739986006046,6.1464,2710.3,2709.9,3.69013]
[1739986006243,0.8297,2710.2,2709.7,3.8371108]
[1739986006558,0.8297,2710.2,2709.7,3.8370008]
[1739986007060,0.8297,2710.2,2709.8,3.69029]
[1739986007555,0.8297,2710.2,2709.8,3.69024]
[1739986008071,3.6899,2710.1,2709.7,0.1466708]
[1739986008269,3.69027,2709.9,2709.7,0.1466708]
[1739986008474,9.05027,2709.9,2709.7,0.1466708]
[1739986009531,5.36,2709.9,2709.7,0.1466708]
[1739986011239,9.05019,2709.9,2709.7,0.1466708]
[1739986011437,4.9905,2709.8,2709.7,0.1466708]
[1739986011637,1.3002,2709.8,2709.7,0.1466708]
[1739986013554,4.9905,2709.8,2709.7,0.1466708]
[1739986014564,0.7502,2709.8,2709.7,0.1466708]
[1739986016264,5.36,2709.9,2709.7,0.1466708]
[1739986016679,6.04788455,2709.9,2709.7,0.1466708]
[1739986017491,5.36,2709.9,2709.7,0.1466708]
[1739986018058,9.05019,2709.9,2709.7,0.1466708]
[1739986019067,4.5228,2709.8,2709.7,0.1466708]
[1739986019961,0.8325,2709.8,2709.7,0.1466708]
[1739986020662,4.5228,2709.8,2709.7,0.1466708]
[1739986020886,6.430086,2709.8,2709.7,0.1466708]
[1739986022384,11.790086,2709.8,2709.7,0.1466708]
[1739986023193,6.1925,2709.8,2709.7,0.1466708]
[1739986023399,5.36,2709.8,2709.7,0.1466708]
[1739986024296,5.36,2709.8,2709.7,3.8371108]
[1739986024604,5.36,2709.8,2709.7,0.1466708]
[1739986024802,6.1494,2709.8,2709.7,0.1466708]
[1739986025362,5.36,2709.8,2709.7,0.1466708]
[1739986028483,6.179,2710.0,2709.7,0.1466708]
[1739986028901,5.36,2710.0,2709.7,0.1466708]
[1739986029100,5.36,2710.0,2709.8,4.48734]
[1739986029406,6.1403,2710.5,2710.0,3.69001]
[1739986029570,9.82965,2710.5,2710.0,3.69001]
[1739986029767,6.1403,2710.5,2709.8,0.7971]
[1739986030140,3.6897,2710.3,2709.7,0.1466708]
[1739986030425,4.4437,2710.1,2709.7,0.1466708]
[1739986030991,0.7538,2710.1,2709.7,0.1466708]
[1739986031727,4.44372,2710.1,2709.7,0.1466708]
[1739986032804,3.69006,2710.0,2709.7,0.1466708]
[1739986034312,9.05006,2710.0,2709.7,0.1466708]
[1739986034677,10.454428,2710.0,2709.7,0.1466708]
[1739986035267,14.144558,2710.0,2709.7,0.1466708]
[1739986035470,10.454428,2710.0,2709.7,0.1466708]
[1739986035768,5.36,2710.0,2709.7,0.1466708]
[1739986036675,9.05005,2710.0,2709.7,0.1466708]
[1739986040077,5.36,2710.0,2709.7,0.1466708]
[1739986040278,9.80377,2710.1,2709.7,0.1466708]
[1739986040484,3.69006,2710.0,2709.7,0.1466708]
[1739986041386,9.80377,2710.1,2709.7,0.1466708]
[1739986041586,3.69009,2710.0,2709.7,0.1466708]
[1739986042186,7.5360032,2710.1,2709.7,0.1466708]
[1739986042339,4.5226,2709.8,2709.7,0.1466708]
[1739986042542,9.8826,2709.8,2709.7,0.1466708]
[1739986044235,5.36,2709.8,2709.7,0.1466708]
[1739986044440,9.0503,2709.8,2709.7,0.1466708]
[1739986044634,10.404903,2709.8,2709.7,0.1466708]
[1739986050781,14.730803,2709.8,2709.7,0.1466708]
[1739986052859,14.730803,2709.8,2709.7,8e-07]
[1739986053059,14.730803,2709.8,2708.2,0.7631]
[1739986053060,3.69071,2709.5,2708.2,0.7631]
[1739986053277,3.69207,2708.6,2708.2,0.7631]
[1739986053478,3.69223,2708.4,2708.2,0.7631]
[1739986053678,9.05199,2708.6,2708.2,0.7631]
[1739986053877,5.36,2708.6,2708.2,0.7631]
[1739986055093,5.36,2708.6,2708.2,4.45558]
[1739986055463,5.36,2708.6,2708.2,0.7631]
[1739986057110,5.36,2708.6,2707.6,3.14318494]
[1739986057111,3.69247,2708.3,2707.9,0.832]
[1739986057615,3.69269,2708.1,2707.6,0.8147]
[1739986057988,3.69291,2707.9,2707.6,0.8147]
[1739986058172,5.36,2708.0,2707.6,0.8147]
[1739986058506,3.69317,2707.7,2707.6,0.8147]
[1739986058708,3.69317,2707.7,2707.3,0.7572]
[1739986059024,7.59905494,2707.7,2707.3,0.7572]
[1739986059313,4.45587,2707.7,2707.3,0.7572]
[1739986059527,3.69333,2707.6,2707.3,0.7572]
[1739986059724,1.90092,2707.6,2707.0,0.1466708]
[1739986059923,3.69366,2707.4,2707.0,0.1466708]
[1739986060612,3.69375,2707.3,2707.0,0.1466708]
[1739986060815,3.69386,2707.2,2707.0,0.1466708]
[1739986061127,0.369386,2707.1,2707.0,0.1466708]
[1739986061406,9.81825,2707.2,2707.0,0.1466708]
[1739986061780,6.1243,2707.2,2707.0,0.1466708]
[1739986061986,5.36,2707.2,2707.0,0.1466708]
[1739986062412,5.36,2707.2,2707.0,0.9109708]
[1739986062576,5.36,2707.2,2707.0,4.6050808]
[1739986062776,5.36,2707.2,2707.1,3.69398]
[1739986063008,5.36,2707.2,2707.1,4.45628]
[1739986063207,5.36,2707.2,2707.1,0.7623]
[1739986063397,5.36,2707.2,2707.1,4.45628]
[1739986064018,7.57408573,2707.9,2707.1,4.45628]
[1739986064019,9.05325,2707.7,2707.1,0.7623]
[1739986064179,8.55990994,2707.6,2707.0,0.1466708]
[1739986064733,0.7729,2707.2,2707.0,0.1466708]
[1739986064884,6.69398,2707.1,2707.0,0.1466708]
[1739986065344,12.05398,2707.1,2707.0,0.1466708]
[1739986065545,13.37688,2707.1,2707.0,0.1466708]
[1739986065722,15.42487149,2707.1,2707.0,0.1466708]
[1739986066143,14.87487149,2707.1,2707.0,0.1466708]
[1739986067656,18.56805643,2707.1,2707.0,0.1466708]
[1739986067823,19.06313176,2707.1,2707.0,0.1466708]
[1739986068455,15.42487149,2707.1,2707.0,0.1466708]
[1739986073383,14.87487149,2707.1,2707.0,0.1466708]
[1739986075939,14.10197149,2707.1,2707.0,0.1466708]
[1739986077846,9.05398,2707.1,2707.0,0.1466708]
[1739986078060,12.05398,2707.1,2707.0,0.1466708]
[1739986080575,11.96518,2707.1,2707.0,0.1466708]
[1739986081942,8.36,2707.1,2707.0,0.1466708]
[1739986082361,5.36,2707.1,2707.0,0.9233708]
[1739986082969,5.36,2707.1,2707.0,0.1466708]
[1739986083168,13.328743,2707.1,2707.0,0.1466708]
[1739986084381,8.36,2707.1,2707.0,0.1466708]
[1739986084757,5.36,2707.1,2707.0,0.1466708]
[1739986086195,5.36,2707.3,2707.0,3.8406808]
[1739986086401,5.36,2707.3,2707.1,0.8222]
[1739986087984,0.8188,2708.1,2707.4,3.69356]
[1739986087985,5.36,2707.7,2707.4,3.69356]
[1739986088147,5.36,2707.7,2707.5,0.8225]
[1739986089988,8.36,2708.1,2707.5,0.8225]
[1739986090292,12.05264,2708.1,2707.5,0.8225]
[1739986090680,8.36,2708.1,2707.5,4.51593]
[1739986091006,5.36,2708.1,2707.7,0.7776]
[1739986091302,15.92852494,2708.6,2707.8,3.69296]
[1739986091303,9.05208,2708.5,2707.8,3.69296]
[1739986091596,3.0,2708.4,2707.8,7.3859]
[1739986091809,5.36,2708.5,2707.9,3.69282]
[1739986092110,5.36,2708.5,2708.0,0.7681]
[1739986092309,9.05209,2708.5,2708.0,0.7681]
[1739986093095,12.74425,2708.5,2708.0,0.7681]
[1739986093260,5.36,2708.5,2708.0,0.7681]
[1739986093461,5.36,2708.5,2708.0,4.46086]
[1739986093660,5.36,2708.5,2708.0,5.276229]
[1739986093891,5.36,2708.5,2708.1,3.69259]
[1739986094111,5.36,2708.5,2708.0,1.583469]
[1739986094396,5.36,2708.5,2708.1,3.69261]
[1739986095110,5.36,2708.5,2708.0,5.276159]
[1739986095262,5.36,2708.5,2708.1,0.5276159]
[1739986095462,5.36,2708.5,2708.2,3.69246]
[1739986096110,5.36,2708.5,2708.2,3.69239]
[1739986096398,5.36,2708.8,2708.3,4.46236]
[1739986096558,3.0,2708.8,2708.3,4.46245]
[1739986096755,3.0,2708.8,2708.3,5.33070859]
[1739986097396,3.0,2708.8,2708.3,1.63835859]
[1739986097593,6.69167,2708.8,2708.3,0.7701]
[1739986098497,3.0,2708.8,2708.3,0.7701]
[1739986099205,6.69167,2708.8,2708.3,0.7701]
[1739986099591,3.0,2708.8,2708.3,0.7701]
[1739986099776,6.69173,2708.8,2708.3,0.7701]
[1739986100609,3.69182,2708.7,2708.3,0.7701]
[1739986100820,5.58048949,2708.7,2708.0,4.52129]
[1739986101201,1.88866949,2708.7,2708.0,4.52128]
[1739986101374,3.0,2708.8,2708.2,3.69242]
[1739986101809,6.69173,2708.8,2708.2,3.69242]
[1739986102111,6.69169,2708.8,2708.2,3.69242]
[1739986102312,3.0,2708.8,2708.2,3.69242]
[1739986102612,3.0,2708.8,2708.3,0.8043]
[1739986104023,3.69186,2708.7,2708.3,0.8043]
[1739986104395,6.69168,2708.8,2708.3,0.8043]
[1739986104590,3.69183,2708.7,2708.3,0.8043]
[1739986104908,5.04323676,2708.8,2708.3,0.8043]
[1739986105078,8.73499676,2708.8,2708.3,0.8043]
[1739986105718,3.69202,2708.6,2708.0,0.754]
[1739986105893,4.93471668,2708.6,2708.0,4.44671]
[1739986106992,1.24270668,2708.6,2708.1,3.69262]
[1739986107393,3.69181,2708.7,2708.1,3.69262]
[1739986107584,7.38373,2708.7,2708.1,3.69262]
[1739986107789,3.69201,2708.6,2708.0,4.44674]
[1739986107986,3.69218,2708.5,2708.0,0.754]
[1739986108209,3.0,2708.4,2708.0,0.754]
[1739986108412,3.0,2708.4,2708.0,4.44666]
[1739986108628,3.0,2708.6,2708.1,3.69262]
[1739986109431,3.0,2708.6,2708.0,4.891406]
[1739986109631,3.0,2708.6,2708.0,4.44674]
[1739986110629,3.69208,2708.5,2708.0,4.44674]
[1739986111514,3.69208,2708.5,2708.0,0.754]
[1739986111901,3.69236,2708.3,2708.0,0.754]
[1739986112106,3.0,2708.2,2707.7,0.7751]
[1739986112407,6.69251,2708.2,2707.7,0.7751]
[1739986112610,3.69263,2708.1,2707.4,0.78]
[1739986112816,3.69263,2708.1,2707.5,3.69332]
[1739986113021,3.750896,2708.2,2707.6,3.69329]
[1739986113422,0.750896,2708.2,2707.7,3.69307]
[1739986113645,1.54324717,2708.4,2707.8,0.7886]
[1739986113937,6.69251,2708.2,2707.8,0.7886]
[1739986114842,3.0,2708.2,2707.8,0.7886]
[1739986115137,3.0,2708.3,2707.8,4.48161]
[1739986116238,6.69237,2708.3,2707.8,4.48161]
[1739986117006,3.0,2708.3,2707.8,4.48161]
[1739986117212,3.69236,2708.3,2707.8,4.48161]
[1739986117625,5.36,2708.2,2707.8,4.48161]
[1739986117827,5.36,2708.2,2707.8,0.7886]
[1739986118235,5.36,2708.2,2707.9,3.69289]
[1739986118437,5.36,2708.2,2707.8,4.48161]
[1739986119040,5.36,2708.2,2708.1,3.69262]
[1739986120008,5.36,2708.2,2708.0,4.48454]
[1739986120622,5.36,2708.2,2708.1,3.69262]
[1739986120821,5.36,2708.2,2708.0,4.48454]
[1739986121245,5.36,2708.2,2708.0,0.7918]
[1739986121449,5.36,2708.2,2707.8,0.817476]
[1739986121450,5.896,2708.2,2707.8,0.8133]
[1739986121620,9.58852,2708.2,2707.8,0.8133]
[1739986122147,9.58852,2708.2,2707.4,0.8133]
[1739986122148,3.69264,2708.1,2707.4,0.8133]
[1739986122325,9.58849,2708.2,2707.5,3.69337]
[1739986122625,9.58849,2708.2,2707.6,3.69323]
[1739986122821,5.36,2708.2,2707.7,3.69312]
[1739986123023,5.36,2708.2,2707.8,4.51205]
[1739986123542,5.36,2708.3,2707.8,4.51205]
[1739986123714,5.36,2708.3,2707.9,3.69283]
[1739986124552,5.36,2708.3,2707.8,4.51205]
[1739986124553,5.36,2708.3,2707.8,4.51202]
[1739986125051,9.05236,2708.3,2707.8,0.8191]
[1739986125844,10.626818,2708.3,2707.8,0.8191]
[1739986126050,3.69249,2708.2,2707.8,0.8191]
[1739986126245,9.05235,2708.3,2707.8,0.8191]
[1739986126438,9.05235,2708.3,2707.8,4.51211]
[1739986127850,5.36,2708.3,2707.8,4.51206]
[1739986128021,5.36,2708.3,2707.9,3.69282]
[1739986128357,5.36,2708.3,2707.9,3.69283]
[1739986129345,12.05223,2708.4,2707.9,3.69283]
[1739986129954,15.74453,2708.4,2707.8,4.51212]
[1739986130259,12.05223,2708.4,2707.8,4.51212]
[1739986130551,8.36,2708.4,2707.9,3.69286]
[1739986130854,12.05225,2708.4,2707.8,4.51212]
[1739986131053,8.36,2708.4,2707.9,3.69279]
[1739986131353,8.36,2708.4,2708.0,3.69272]
[1739986131515,8.36,2708.4,2707.9,3.69289]
[1739986131950,8.36,2708.4,2708.0,3.69275]
[1739986132545,5.36,2708.4,2708.2,0.8291]
[1739986134745,5.36,2708.4,2708.2,4.52158]
[1739986135060,5.36,2708.4,2708.2,0.8291]
[1739986135444,3.0,2708.6,2708.2,0.8291]
[1739986136359,5.36,2708.7,2708.2,4.52151]
[1739986136566,5.36,2708.7,2708.4,3.6921]
[1739986136722,4.51574,2709.1,2708.4,3.6921]
[1739986136723,9.05148,2709.0,2708.4,3.6921]
[1739986137363,9.05147,2709.0,2708.4,3.6921]
[1739986137751,3.69161,2708.9,2708.3,4.920061]
[1739986137946,3.6918,2708.7,2708.3,0.7756]
[1739986138152,4.51116,2708.6,2708.0,0.81]
[1739986138677,4.51116,2708.6,2708.0,4.50269]
[1739986138823,0.8192,2708.6,2708.0,0.81]
[1739986139026,0.8192,2708.6,2708.1,3.69261]
[1739986139521,3.0,2708.9,2708.3,3.69233]
[1739986139725,3.0,2708.9,2708.4,4.46933]
[1739986140539,3.0,2708.9,2708.5,3.69206]
[1739986142060,3.0,2708.9,2708.4,0.7772]
[1739986142061,6.69159,2708.9,2708.4,0.7772]
[1739986142241,6.69159,2708.9,2708.1,4.512058]
[1739986142242,4.48081,2708.7,2708.1,4.50292]
[1739986142565,3.692,2708.6,2707.9,4.50312]
[1739986142866,3.692,2708.6,2708.1,3.69259]
[1739986143240,3.0,2708.6,2708.1,3.69259]
[1739986143560,0.789,2708.7,2708.1,3.69259]
[1739986143752,3.0,2708.6,2708.1,3.69259]
[1739986144365,0.789,2708.7,2708.3,3.69232]
[1739986144728,3.0,2708.6,2708.1,3.69254]
[1739986144924,0.789,2708.7,2708.0,3.69276]
[1739986145153,0.789,2708.7,2707.9,0.8103]
[1739986145369,0.789,2708.7,2708.2,3.69241]
[1739986145533,3.0,2708.6,2708.2,3.69241]
[1739986147258,8.36,2708.6,2708.2,3.69241]
[1739986147663,8.36,2708.6,2708.3,3.69226]
[1739986147841,5.36,2708.6,2708.3,4.44292]
[1739986148044,5.36,2708.6,2708.4,3.6922]
[1739986148640,5.36,2708.6,2708.3,1.194992]
[1739986148846,9.846,2708.6,2708.1,0.7825]
[1739986149165,9.84599,2708.6,2707.9,0.8072]
[1739986149351,0.8078,2708.2,2707.6,0.8072]
[1739986149553,3.0,2708.1,2707.4,3.6935]
[1739986149754,3.0,2708.1,2707.6,3.6933]
[1739986149929,5.36,2708.2,2707.7,0.03693043]
[1739986150131,5.36,2708.2,2707.5,0.8072]
[1739986150553,4.45703,2708.1,2707.5,0.8072]
[1739986150774,3.0,2708.0,2707.5,1.25727]
[1739986150972,6.69276,2708.0,2707.5,1.25727]
[1739986151133,3.0,2708.0,2707.3,0.7914]
[1739986151335,6.69311,2707.8,2707.2,3.69372]
[1739986151552,3.0,2707.8,2707.2,3.69372]
[1739986151828,3.0,2707.8,2707.3,3.6937]
[1739986152439,3.0,2707.8,2707.2,3.69372]
[1739986152668,3.0,2707.8,2707.3,4.142122]
[1739986153259,8.36,2707.8,2707.3,0.448512]
[1739986153453,4.44718,2707.7,2707.1,0.7914]
[1739986153654,3.69338,2707.6,2707.1,0.7914]
[1739986153840,4.44718,2707.7,2707.0,0.1466708]
[1739986154167,3.69386,2707.2,2707.0,0.1466708]
[1739986154367,0.444786,2707.2,2707.0,0.1466708]
[1739986154566,3.69373,2707.3,2707.0,0.1466708]
[1739986154874,7.38752,2707.3,2707.0,0.1466708]
[1739986155169,3.69373,2707.3,2707.0,0.1466708]
[1739986156777,7.44759,2707.4,2707.0,0.1466708]
[1739986156958,3.69373,2707.3,2707.0,0.1466708]
[1739986157562,7.44758,2707.4,2707.0,0.1466708]
[1739986157742,5.34907049,2707.4,2707.0,0.1466708]
[1739986157939,3.754,2707.4,2707.0,0.1466708]
[1739986158273,3.0,2707.4,2707.0,3.8407108]
[1739986158473,6.1132,2707.6,2707.2,3.69373]
[1739986158700,5.36,2707.6,2707.3,3.69364]
[1739986158876,5.36,2707.6,2707.2,3.69375]
[1739986159078,12.05306,2707.8,2707.2,7.3875]
[1739986159239,8.36,2707.8,2707.2,3.69375]
[1739986159443,8.36,2707.8,2707.3,3.6937]
[1739986160047,8.36,2707.8,2707.4,3.69355]
[1739986160389,8.36,2707.8,2707.3,3.69368]
[1739986160587,8.36,2707.8,2707.2,3.69375]
[1739986160588,8.36,2707.8,2707.4,3.69356]
[1739986160801,8.36,2707.8,2707.2,3.69375]
[1739986160802,8.36,2707.8,2707.3,3.69361]
[1739986160960,5.36,2707.8,2707.4,3.69354]
[1739986161158,5.36,2707.8,2707.3,3.69361]
[1739986161348,5.36,2707.8,2707.4,3.69358]
[1739986161546,9.05314,2707.8,2707.2,3.69385]
[1739986161741,9.05314,2707.8,2707.2,3.69379]
[1739986161946,9.05314,2707.8,2707.3,3.69364]
[1739986162397,3.69317,2707.7,2707.1,4.4553]
[1739986162557,9.05314,2707.8,2707.1,5.28489908]
[1739986162764,9.05314,2707.8,2707.3,3.6937]
[1739986163463,3.69317,2707.7,2707.2,3.69377]
[1739986163689,5.36,2707.8,2707.2,3.69375]
[1739986163988,5.36,2707.8,2707.3,3.6937]
[1739986164191,9.05305,2707.8,2707.3,3.6937]
[1739986164489,9.05305,2707.8,2707.2,3.69375]
[1739986164643,9.05305,2707.8,2707.3,3.69368]
[1739986165243,9.05305,2707.8,2707.2,3.69384]
[1739986165975,6.69323,2707.7,2707.1,1.59099908]
[1739986166273,3.0,2707.7,2707.3,3.69369]
[1739986166973,3.0,2707.7,2707.1,1.59099908]
[1739986167179,6.69317,2707.7,2707.1,4.45532]
[1739986167374,6.69317,2707.7,2707.2,3.69381]
[1739986167877,6.69317,2707.7,2707.1,8.14923]
[1739986168080,6.69317,2707.7,2707.2,3.69382]
[1739986168657,6.69317,2707.7,2707.1,4.45531]
[1739986168858,6.69317,2707.7,2707.1,8.14922]
[1739986169058,6.69317,2707.7,2707.2,3.69378]
[1739986170545,6.69317,2707.7,2707.2,3.69377]
[1739986170879,6.69317,2707.7,2707.1,4.45533]
[1739986171081,15.74644,2707.7,2707.1,4.45533]
[1739986171379,4.45225,2707.5,2707.0,3.8406808]
[1739986171756,0.7588,2707.5,2707.1,3.69393]
[1739986171958,0.7588,2707.4,2707.0,0.1466708]
[1739986172171,4.45239,2707.4,2707.0,0.1466708]
[1739986172364,0.7588,2707.4,2707.0,0.1466708]
[1739986173186,0.7588,2707.4,2707.0,3.8407708]
[1739986173692,0.7588,2707.4,2707.0,3.8407808]
[1739986173990,4.45239,2707.4,2707.0,3.8407808]
[1739986174189,3.69387,2707.2,2707.0,0.1466708]
[1739986174371,6.69398,2707.1,2707.0,0.1466708]
[1739986174967,0.8225,2707.3,2707.1,3.69388]
[1739986175168,9.85707,2707.7,2707.1,3.69398]
[1739986175373,5.36,2707.7,2707.4,3.6935]
[1739986175584,5.36,2707.7,2707.5,0.44484]
[1739986175789,5.36,2707.7,2707.3,0.7549]
[1739986175790,9.0532,2707.7,2707.3,0.7549]
[1739986176099,0.8039,2707.6,2707.0,4.5956708]
[1739986176457,4.49723,2707.6,2707.0,4.5956708]
[1739986176678,3.69345,2707.5,2707.0,0.1466708]
[1739986177494,3.69345,2707.5,2707.0,4.29997588]
[1739986177680,7.38699,2707.5,2707.0,0.1466708]
[1739986177883,7.38698,2707.5,2707.0,0.1466708]
[1739986178055,3.69358,2707.4,2707.0,0.1466708]
[1739986178961,0.8039,2707.6,2707.1,3.69396]
[1739986179295,5.36,2707.7,2707.4,3.69356]
[1739986179483,5.36,2707.7,2707.3,3.6937]
[1739986180312,5.36,2707.7,2707.5,3.69334]
[1739986180530,5.36,2708.1,2707.8,3.69291]
[1739986180720,5.36,2708.4,2708.0,3.69276]
[1739986181378,5.36,2708.4,2707.9,3.69289]
[1739986182395,9.05229,2708.4,2707.8,3.69299]
[1739986182700,3.69244,2708.3,2707.6,4.45164]
[1739986182903,3.69244,2708.3,2707.6,8.14487]
[1739986183395,3.69244,2708.3,2707.6,4.45163]